Cogmind - Beta 14 @@@ ROGUE MODE // 2024.10.20 @ 17:36:37 Player: toydarian Result: Self-destructed Performance ------------- Evolutions (2) 1000 Regions Visited (4) 800 Robots Destroyed (71) 355 Value Destroyed (1623) 1623 Prototype IDs (0) 0 Alien Tech Used (0) 0 Bonus (61) 61 TOTAL SCORE: 3839 Bonus ------- High Alert Combat Kills 61 Cogmind --------- Core Integrity 320/550 Matter 11/300 Energy 240/240 System Corruption 1% Temperature Cool (0) Movement Treading (320) Ox2 Location -8/Materials Parts ------- > --- POWER (1) -------- Nuclear Core > --- PROPULSION (3) --- Light Treads > --- UTILITY (5) ------ High-capacity Storage Unit Power Shielding Makeshift Light Armor Plating Hacking Suite > --- WEAPON (2) ------- Assault Rifle > --- INVENTORY (20) --- Armored Wheel Armored Wheel Huge Storage Unit Large Matter Pod (0) Utility Shielding Hardened Light Armor Plating Hacking Suite Assault Rifle Heavy Assault Rifle Grenade Launcher Rocket Launcher Rocket Launcher Rocket Launcher Mining Laser Peak State ------------ > --- POWER ------------ Light Nuclear Core > --- PROPULSION ------- Light Treads Light Treads Light Treads > --- UTILITY ---------- High-capacity Storage Unit Power Shielding Makeshift Light Armor Plating Hacking Suite > --- WEAPON ----------- Rocket Launcher Rocket Launcher > --- INVENTORY -------- Armored Wheel Armored Wheel Huge Storage Unit Utility Shielding Hardened Light Armor Plating Hacking Suite Assault Rifle Assault Rifle Heavy Assault Rifle Grenade Launcher Rocket Launcher Rocket Launcher Mining Laser [Rating: 21] Favorites ----------- Power Ion Engine Engine Ion Engine Power Core Nuclear Core Propulsion Light Treads Treads Light Treads Wheel Armored Wheel Utility High-capacity Storage Unit Device Structural Scanner Storage High-capacity Storage Unit Hackware Hacking Suite Protection Weapon Shielding Weapon Assault Rifle Ballistic Gun Assault Rifle Launcher Grenade Launcher Build | -11 -10 -10 -10 -8 ------- Run | Yrd Mat Min Sub Mat Slots Evolved 4 | . . . . 4 Power . | . . . . . Propulsion 1 | . . . . 1 Utility 3 | . . . . 3 Weapon . | . . . . . Parts Attached 57 | 7 19 5 . 26 Power 7 | 2 . 1 . 4 Engine 4 | 2 . 1 . 1 Core 3 | . . . . 3 Reactor . | . . . . . Propulsion 10 | 2 2 2 . 4 Treads 8 | 2 . 2 . 4 Leg . | . . . . . Wheel 2 | . 2 . . . Hover . | . . . . . Flight . | . . . . . Utility 12 | 1 3 . . 8 Device 1 | . . . . 1 Storage 4 | 1 1 . . 2 Processor . | . . . . . Hackware 2 | . . . . 2 Protection 5 | . 2 . . 3 Artifact . | . . . . . Weapon 28 | 2 14 2 . 10 Energy Gun . | . . . . . Energy Cannon . | . . . . . Ballistic Gun 14 | 2 7 . . 5 Ballistic Cannon . | . . . . . Launcher 14 | . 7 2 . 5 Special Weapon . | . . . . . Impact Weapon . | . . . . . Slashing Weapon . | . . . . . Piercing Weapon . | . . . . . Special Melee Weapon . | . . . . . Unidentified Prototypes . | . . . . . Parts Lost 14 | . . . . 14 Power 3 | . . . . 3 Propulsion 5 | . . . . 5 Utility 3 | . . . . 3 Weapon 3 | . . . . 3 Highest Loss Streak 9 | . . . . 9 To Critical Strikes 1 | . . . . 1 Average Slot Usage (%) 92 | . 98 100 100 79 Engine 10 | . 14 14 14 3 Treads 24 | . 26 25 28 18 Wheel 1 | . 1 2 . . Storage 14 | . 14 14 14 14 Hackware 2 | . . . . 6 Protection 12 | . 12 14 14 12 Ballistic Gun 13 | . 22 . . 4 Launcher 11 | . 5 27 28 13 Peak Build Rating 21 | 6 11 11 10 21 Average Rating 10 | 4 7 10 10 15 On Entrance 7 | . 6 11 10 10 Naked Turns . | . . . . . Heaviest Build 58 | 14 52 52 52 58 Greatest Support 60 | 40 40 40 40 60 Greatest Overweight (x) 18 | 1 4 2 1 18 Average Overweight (x) . | . . 1 1 1 Largest Inventory Capacity 20 | 8 20 20 20 20 Average Capacity 18 | 7 17 20 20 20 Most Carried 20 | 5 20 20 20 20 Average Carried 13 | 2 11 19 20 15 Final Capacity 20 | 8 20 20 20 20 Final Carried 20 | 2 19 20 20 14 Class Distribution -------------------- 86% | Mutant 13% | Scavenger-Mutant Dominant Class ---------------- Mutant | -10/Materials Mutant | -10/Mines Mutant | -10/Subcaves Mutant | -8/Materials Resources | -11 -10 -10 -10 -8 ----------- Run | Yrd Mat Min Sub Mat Matter Collected 1155 | 216 420 48 . 471 Remotely . | . . . . . Salvage Created 1333 | . 551 42 10 730 Parts 115 | . 52 4 6 53 Haulers Intercepted 4 | . 2 . . 2 Recyclers Shooed 1 | . . . . 1 Parts Field Recycled . | . . . . . Retrieved Matter . | . . . . . Parts Self-Destructed 4 | . . . 4 . Prevented . | . . . . . Kills | -11 -10 -10 -10 -8 ------- Run | Yrd Mat Min Sub Mat Combat Hostiles Destroyed 46 | . 17 2 3 24 Melee 1 | . . . . 1 Guns 11 | . 7 . . 4 AOE 34 | . 10 2 3 19 Classes Destroyed 11 | . 7 1 . 3 Worker 5 | . 3 . . 2 Builder 4 | . 2 . . 2 Tunneler 2 | . . . . 2 Hauler 4 | . 2 . . 2 Recycler 2 | . . . . 2 Operator 4 | . 3 . . 1 Watcher 4 | . 3 . . 1 Swarmer 20 | . 9 . 3 8 Grunt 19 | . 8 . . 11 Sentry 6 | . . 2 . 4 Hunter 1 | . . . . 1 Best Kill Streak 7 | . 6 2 3 7 Combat Bots Only 5 | . 5 2 3 4 Max Kills in Single Turn 4 | . 4 1 3 3 Gunslinging . | . . . . . Exploded 3 | . 3 1 3 3 Melee 1 | . . . . 1 Uniques/NPCs Destroyed . | . . . . . Combat | -11 -10 -10 -10 -8 -------- Run | Yrd Mat Min Sub Mat Hostile Shots Fired 279 | . 85 10 . 184 Missed 87 | . 23 2 . 62 Damage Taken 2347 | . 547 116 . 1684 Core 338 | . 81 27 . 230 Absorbed by Shields . | . . . . . Redirected to Shielding 61 | . 27 12 . 22 Core Remaining (%) 78 | 100 . . 56 . Volleys Fired 112 | . 61 3 1 47 Largest 2 | . 2 2 2 2 Hottest 66 | . 60 60 60 66 Shots Fired 217 | . 119 6 2 90 Gun 146 | . 104 . . 42 Cannon . | . . . . . Launcher 71 | . 15 6 2 48 Special . | . . . . . Kinetic 146 | . 104 . . 42 Thermal . | . . . . . Explosive 71 | . 15 6 2 48 Electromagnetic . | . . . . . Robot Hit Streak 14 | . 7 6 2 14 Robot Miss Streak 6 | . 6 1 . 3 Penetration Max . | . . . . . Secondary Targets 3 | . 3 . . . Max Gunslinging Chain 1 | . 1 . . . Shots Hit Robots 121 | . 61 4 2 54 Core Hits 123 | . 45 4 2 72 Critical Kills 1 | . 1 . . . Critical Parts Destroyed . | . . . . . Critical Strikes 1 | . 1 . . . Destroy 1 | . 1 . . . Melee Attacks . | . . . . . Impact . | . . . . . Slashing . | . . . . . Piercing . | . . . . . Sneak Attacks . | . . . . . Combat Hostiles . | . . . . . Follow-up Attacks . | . . . . . Damage Inflicted 4423 | . 1376 162 130 2755 Guns 1026 | . 709 . . 317 Cannons . | . . . . . Explosions 3289 | . 657 162 130 2340 Melee . | . . . . . Ramming 108 | . 10 . . 98 Kinetic 1026 | . 709 . . 317 Thermal 20 | . . . . 20 Explosive 3269 | . 657 162 130 2320 Electromagnetic . | . . . . . Impact . | . . . . . Slashing . | . . . . . Piercing . | . . . . . Highest Corruption 1 | . . . . 1 Average Corruption 1 | . . . . 1 Corruption Purged . | . . . . . Corruption Blocked . | . . . . . Effects 5 | . . . . 5 Matter Fused 1 | . . . . 1 Heat Flow Errors 3 | . . . . 3 Misfires 1 | . . . . 1 Overload Shots . | . . . . . Overflow Damage 103 | . 14 . 11 78 Projectiles . | . . . . . Explosions 103 | . 14 . 11 78 Melee . | . . . . . Knockbacks 1 | . . . . 1 Impact 1 | . . . . 1 Kinetic . | . . . . . Secondary . | . . . . . Self-Inflicted Damage 141 | . . . . 141 Shots 3 | . . . . 3 Rammed 20 | . 1 . . 19 Targets Rammed 21 | . 1 . . 20 Kicked . | . . . . . Crushed 1 | . . . . 1 Highest Temperature 235 | . 18 27 . 235 Average Temperature 48 | . 9 22 . 58 Received Heat Transfer 765 | . 144 45 . 576 Siege Activations . | . . . . . Robots Corrupted . | . . . . . Combat Hostiles . | . . . . . Parts Fried . | . . . . . Impact Corruptions . | . . . . . Robots Melted . | . . . . . Combat Hostiles . | . . . . . Parts Melted . | . . . . . Heat Transferred 50 | . . . . 50 Parts Sabotaged . | . . . . . Parts Stolen . | . . . . . Parts Stripped . | . . . . . Power Chain Reactions . | . . . . . Alert | -11 -10 -10 -10 -8 ------- Run | Yrd Mat Min Sub Mat Peak Influence 584 | . 247 137 . 584 Initial 58 | . . 58 . 36 Average 167 | . 76 92 . 377 Maximum Alert Level 2 | . 1 . . 2 Low Security (%) 73 | 100 98 100 . 16 Level 1 13 | . 1 . . 42 Level 2 12 | . . . . 40 Level 3 . | . . . . . Level 4 . | . . . . . Level 5 . | . . . . . High Security . | . . . . . Max Security . | . . . . . Squads Dispatched 9 | . 5 . . 4 Investigation 2 | . 2 . . . Extermination . | . . . . . Reinforcement 6 | . 3 . . 3 Assault 1 | . . . . 1 Garrison . | . . . . . Intercept . | . . . . . Searches Triggered . | . . . . . Construction Impeded 1 | . . . . 1 Haulers Reinforced . | . . . . . Active Scanning Responses . | . . . . . Cargo Convoy Interrupts . | . . . . . Stealth | -11 -10 -10 -10 -8 --------- Run | Yrd Mat Min Sub Mat Distress Signals 5 | . . . . 5 Communications Jammed . | . . . . . Distress Signals . | . . . . . Times Spotted 76 | . 28 2 . 46 Peak Tracking Total 11 | . 5 2 . 11 Tactical Retreats 5 | . 2 . . 3 Traps | -11 -10 -10 -10 -8 ------- Run | Yrd Mat Min Sub Mat Traps Triggered 2 | . 1 . . 1 Indirectly . | . . . . . Trap Hack Attempts . | . . . . . Triggered . | . . . . . Disarmed 10 | . 10 . . . Reprogrammed . | . . . . . Reused . | . . . . . Traps Extracted . | . . . . . Installed . | . . . . . Triggered . | . . . . . Machines | -11 -10 -10 -10 -8 ---------- Run | Yrd Mat Min Sub Mat Machines Disabled 13 | . . 2 . 11 Max in Single Turn 3 | . . 1 . 3 Machines Repaired . | . . . . . Machines Dismantled . | . . . . . Machines Sabotaged . | . . . . . Overloaded Fab Kills . | . . . . . Hacking | -11 -10 -10 -10 -8 --------- Run | Yrd Mat Min Sub Mat Machines Accessed 7 | . 4 1 . 2 Terminals 6 | . 3 1 . 2 Fabricators . | . . . . . Repair Stations . | . . . . . Recycling Units 1 | . 1 . . . Scanalyzers . | . . . . . Garrison Access . | . . . . . Total Hacks 23 | . 16 1 . 6 Successful 13 | . 10 . . 3 Failed 10 | . 6 1 . 3 Catastrophic 2 | . 1 1 . . Database Lockouts . | . . . . . Manual 9 | . 9 . . . Terminals 16 | . 9 1 . 6 Fabricators . | . . . . . Repair Stations . | . . . . . Recycling Units 7 | . 7 . . . Scanalyzers . | . . . . . Garrison Access . | . . . . . Terminal Hacks 7 | . 4 . . 3 Alert Level 2 | . . . . 2 Unreport Threat 1 | . . . . 1 Locate Traps 2 | . 2 . . . Disarm Traps 2 | . 2 . . . Fabricator Hacks . | . . . . . Repair Station Hacks . | . . . . . Recycling Unit Hacks 6 | . 6 . . . Recycle Component 4 | . 4 . . . Process 1 | . 1 . . . Retrieve Matter 1 | . 1 . . . Scanalyzer . | . . . . . Garrison Access Hacks . | . . . . . Unauthorized Hacks . | . . . . . Terminals . | . . . . . Fabricators . | . . . . . Repair Stations . | . . . . . Recycling Units . | . . . . . Scanalyzers . | . . . . . Garrison Access . | . . . . . Data Cores Recovered . | . . . . . Used . | . . . . . Hacking Detections 5 | . 2 1 . 2 Full Trace Events 1 | . 1 . . . Feedback Events . | . . . . . Feedback Blocked . | . . . . . Robot Schematics Acquired . | . . . . . Robots Built . | . . . . . Authchips . | . . . . . Time . | . . . . . Total Robot Build Rating . | . . . . . Part Schematics Acquired . | . . . . . Parts Built . | . . . . . Authchips . | . . . . . Time . | . . . . . Total Part Build Rating . | . . . . . Parts Repaired . | . . . . . Time . | . . . . . Parts Recycled 4 | . 4 . . . Recycled Matter 368 | . 368 . . . Retrieved Matter 383 | . 383 . . . Retrieved Components . | . . . . . Parts Scanalyzed . | . . . . . Part Schematics Acquired . | . . . . . Parts Damaged . | . . . . . Bothacking | -11 -10 -10 -10 -8 ------------ Run | Yrd Mat Min Sub Mat Used RIF Installer . | . . . . . Robots Hacked . | . . . . . Non-combat . | . . . . . Combat . | . . . . . Robot Hacks Applied . | . . . . . Relay Couplers Released . | . . . . . Fabnet Peak Effective % . | . . . . . Robots Rewired . | . . . . . Allies Hacked . | . . . . . Hacks Repelled . | . . . . . Allies | -11 -10 -10 -10 -8 -------- Run | Yrd Mat Min Sub Mat Total Allies . | . . . . . Largest Group . | . . . . . Highest-Rated Group . | . . . . . Highest-Rated Ally . | . . . . . Total Orders . | . . . . . Ally Attacks . | . . . . . Total Damage . | . . . . . Kills . | . . . . . Allies Corrupted . | . . . . . Allies Melted . | . . . . . Intel | -11 -10 -10 -10 -8 ------- Run | Yrd Mat Min Sub Mat Robot Analysis Total . | . . . . . Derelict Logs Recovered 2 | . . 2 . . Drone Launches . | . . . . . Drone Recoveries . | . . . . . Exploration | -11 -10 -10 -10 -8 ------------- Run | Yrd Mat Min Sub Mat Turns Passed 4265 | 63 2281 573 98 1250 Spaces Moved 1749 | 45 961 243 40 460 Core 39 | 21 . . . 18 Treads 1608 | 24 882 220 40 442 Legs . | . . . . . Wheels 102 | . 79 23 . . Hover . | . . . . . Flight . | . . . . . Fastest Speed 50 | 50 120 120 240 160 Average Speed 215 | 109 212 228 240 225 Slowest Speed 950 | 160 240 240 240 950 Overloaded Moves . | . . . . . Propulsion Burnouts . | . . . . . Robots Hopped . | . . . . . Cave-ins Triggered . | . . . . . Exploration Rate (%) 43 | 4 95 71 3 45 Regions Visited 4 Branch Regions 2 Pre-discovered Areas . | . . . . . Known Exits Taken . | . . . . . Unknown Exits Taken 4 | 1 1 1 1 . Scrap Searched 1 | . . 1 . . Spaces Dug . | . . . . . Terrain Destroyed 385 | . 59 31 14 281 Melee . | . . . . . Projectile . | . . . . . AOE 385 | . 59 31 14 281 Terrain Rammed . | . . . . . Walls Destroyed . | . . . . . Machines Disabled . | . . . . . Actions | -11 -10 -10 -10 -8 --------- Run | Yrd Mat Min Sub Mat Total 2002 | 58 1079 255 42 568 Wait . | . . . . . Move 1745 | 44 960 242 39 460 Hop . | . . . . . Pick Up 50 | 6 29 3 1 11 Fast Attach 3 | 2 1 . . . Attach 21 | 4 1 . . 16 Detach 1 | . . . . 1 Swap 33 | 1 17 5 . 10 Drop 16 | 1 9 2 1 3 Fire 112 | . 61 3 1 47 Melee . | . . . . . Ram . | . . . . . Kick . | . . . . . Crush 21 | . 1 . . 20 Escape Stasis . | . . . . . Rewire . | . . . . . Trap . | . . . . . Miscellaneous . | . . . . . Route ------- -11/Scrapyard -10/Materials (discovered 3 exits: [*Mat x2] / *Min) -10/Mines -10/Subcaves -8/Materials (discovered 2 exits: *Fac x2) History --------- Turn | Location | Event 12 | -11/Scrapyard | Discovered new exit (range 15) 64 | -11/Scrapyard | Entered Materials 313 | -10/Materials | Build established: Mutant 397 | -10/Materials | Discovered new exit (range 16) 637 | -10/Materials | Discovered new exit (range 13) 1451 | -10/Materials | Discovered new exit (range 10) 2345 | -10/Materials | Entered Mines 2350 | -10/Mines | Learned 8 Materials zone layouts 2354 | -10/Mines | Learned location of 1 exit from Materials 2894 | -10/Mines | Discovered new exit (range 13) 2918 | -10/Mines | Entered Subcaves 2927 | -10/Subcaves | Shifting Twisted Machinery released Flamer 2934 | -10/Subcaves | Shifting Twisted Machinery released Mak. Light Armor Plating 2980 | -10/Subcaves | Discovered new exit (range 15) 3016 | -10/Subcaves | Entered Materials 3016 | -8/Materials | Evolved 4 slots: Propulsion x1, Utility x3 3017 | -8/Materials | Identified exit to Factory 3429 | -8/Materials | Discovered exit to Factory (range 15) 3433 | -8/Materials | Build established: Scavenger-Mutant 3526 | -8/Materials | Lost 9 parts (2p3n2u2w) 3734 | -8/Materials | Build established: Mutant 4216 | -8/Materials | First assault squad dispatched 4266 | -8/Materials | Self-destructed Last Messages --------------- 04123_ System corrupted: FCS attempts to trigger Rocket Launcher. 04123_ System corrupted: Rocket Launcher misfires. 04123_ K-01 Serf destroyed. 04127_ The unstable cave ceiling collapses. 04216_ ALERT: Significant disruption in Zone 5S, assault force dispatched. [Achievement: Significant Disruption] 04243_ W-25 Informer sends out distress signal. 04246_ System corrupted: Matter fused (-7). 04255_ T-07 Excavator destroyed. 04261_ The unstable cave ceiling collapses. 04263_ U-05 Engineer lays Concrete. 04265_ Rocket Launcher destroyed. 04265_ Critical hit (Destroy). 04265_ Lgt. Treads destroyed. 04265_ U-05 Engineer builds a Wall. 04265_ C-30 ARC bursts open, deploying its payload. 04265_ G-50 Soldier unfolds itself. 04265_ B-36 Bruiser unfolds itself. 04265_ G-47 Trooper unfolds itself. 04265_ M-28 Smith unfolds itself. Map ----- +----------------------------------------------------+ | ?????????## ########????????????## ##??# !+ #? | | ?????????## ##???????????????#####+#### ]# ##? | | ?????????## ##????????###????# # ###?? | | ?????????## ##??????### ###??# T # =##???? | | ?????????## ##????##########?#!!! # =% #???? | | ?????????## ##????#// !!# ###!!! # = #???? | | ?????????## ##????#//= !!# ##!! + #???? | | ?????????## ##????# # ## # #???? | | ?????????## ##????# ##### # #???? | | ?????????## ####### * + ## ###### | | ?????????## # # ##### # ###### | | ###??????## # # ########### ##" | | ######???## # + ##???# "## # | | ## ## #??## # # ##???# # ## | | ##### # # ##???#?######## ###### | | # ######## ####### ###########??## ###### | | ? #????? | | / ? #????? | | = % #????? | | ##########+########b############ ###+#####???? | | # ###### # ggg ##????# ## "T" #???? | | !!????????# T # ##????# ## #???? | | ??????????## # ##????# ## """ #???? | | ???????????# [[ # ###???# ## """ #???? | | ???????????# [ [* # #???# ## """ #???? | | ???????????# [ # @ ##??## ## #???? | | ???????????######## ##??# ########???? | | ???????????######## %###### #???? | | ?????????????????## =Y #???? | | ??????????????????##### ##### #??## | | ??????????????????### #???# #### #### | | ????????????????????# =*[ #??####+###### # | | ????????????????????# =*[ #??# ## # | | ????????????????????# *[[ #### ## # | | ????????????????????# s + # ## # | | ??????????????##########s####### ## + | | ?????????????? ## #######""" ## # | | ?????????????? ## # #""" ## ### | | ?????????????? ##s# #""" ## #?# | | ?????????????? ## # #""" ## #?# | | ?????????????? ## # # ## #?##### | | ?????????????? ## # ########### #?????? | | ?????????????? ## + #?????????# #?????? | | #??# ## ## ## # #?????????????????? | | #??# ## ############# #######?????????????????? | | #??# ## ## # #?????????????????????? | | #### ## ## T """"" / #?????????????????????? | | ## ## """"" # #?????????????????????? | | ## ## """"" # #?????????????????????? | | #### ####### # #?????????????????????? | +----------------------------------------------------+ Best States ------------- Heat Dissipation 31 Energy Generation 14 Energy Capacity 250 Matter Stores 297 Matter Capacity 450 Sight Range 16 Terrain Scan Density 10 Armor Coverage 100 Power Shielding 33 Utility Shielding 33 Weapon Shielding 33 Evasion (%) 50 Recoil Reduction 3 Offensive Hacking 10 Item Schematics ----------------- None Robot Schematics ------------------ None Fabricated ------------ Nothing Alien Tech Used ----------------- None Achievements -------------- Significant Disruption Challenges ------------ None Game ------ Seed SuperdenseGravitonThrower Manual? 0 Play Time 00:34:40 Cumulative 22.6 hours Start 2024.10.20 @ 17:03:10 End 2024.10.20 @ 17:36:37 Sessions 1 Manual Loads 0 Difficulty Rogue Special Mode None Game No. 20 Rogue 13 Adventurer 0 Explorer 7 Win Type - Total 1 Types 1/0/0/0/0/0/0/0/0 Lore% 11 Gallery% 18 Achievement% 23 Wizard Run 0 Options --------- Layout 0 ASCII 0 Keyboard 0 Movement Mouse Keybinds 0 Fullscreen 1 Font 24/Terminus Map View 76x50 Zoom Use 0% Tactical HUD 1 Map Filters NONE Filters NONE Steam 1 RUN: bb8a6746-c283-46d7-a564-2a4def5bf2c7